{"text_format":"2","workbook":"xlsx","n_sheets":6,"sheets":["Záradék","Munkanem összesítő","36.Vakolás és rabicolás","42.Hideg- és melegburkolatok k","47.Felületképzés","82.Épületgépészeti szerelvénye"],"not_rendered":{"charts":0,"images":0,"macros":0,"external_links":1,"defined_names":0,"comments":0,"pivot_tables":0},"unopened":[],"bounds":{"document_bytes":16777216,"sheet_cells":100000,"run_cost":"one","rows_first":2000,"rows_last":500,"rows_between":2000,"halvings":0,"cell_chars":16384,"cell_head_chars":4096},"cells_cut":0,"cells_raw":0,"read":"whole","date_system":"1900"}

{"sheet":"Záradék","index":0,"n_rows":26,"n_cols":4,"rows_kept":26,"cut":false,"hidden":false,"merged":[[19,2,19,3],[20,2,20,3],[7,0,7,3],[12,0,12,3],[14,0,14,3],[17,2,17,3],[18,2,18,3]]}
["Név : SZTE Juhász Gyula Gyakorló Általános és Alapfokú Művészeti Iskolája"]
["                                       ",null,"                                       "]
["Cím : Szeged, Boldogasszony sgt. 8.",null," Kelt:      2022 év...........hó...nap "]
["                                       ",null," Készítette   :            "]
[]
[]
["A munka leírása:                       "]
["SZTE JUGYU, Boldogasszony sgt. 8. sz. alatti épületben az I. emelet 3315, 3326 és 3327-es számú helyiségekben fal vakolás, festés, parketta csiszolás és lakkozás munkálatok elvégzése"]
["                                                                              "]
["                                                                              "]
["Készült:                                                           "]
["                                                                              "]
[]
[]
["Költségvetés főösszesítő"]
["Megnevezés",null,"Anyagköltség","Díjköltség"]
["1 Építmény közvetlen költségei",null,{"$f":"'[1]Munkanem összesítő'!C8","v":0},{"$f":"'[1]Munkanem összesítő'!D8","v":0}]
["2. Tartalékkeret(5%)",null,{"$f":"ROUND(C17+D17,0)*0.05","v":0}]
["3.1 ÁFA vetítési alap",null,{"$f":"ROUND(C17+D17,0)+C18","v":0}]
["3.2 ÁFA",0.27,{"$f":"ROUND(C19*B20,0)","v":0}]
["4 A munka ára (HUF)",null,{"$f":"ROUND(C20+C19,0)","v":0}]
["Megnevezés",null,"Anyagköltség","Díjköltség"]
[]
[]
["                                       "]
["                                       "]

{"sheet":"Munkanem összesítő","index":1,"n_rows":7,"n_cols":4,"rows_kept":7,"cut":false,"hidden":false,"merged":[]}
["Ssz.","Megnevezés","Anyagköltség","Díjköltség"]
[2,"Vakolás és rabicolás",{"$f":"'36.Vakolás és rabicolás'!H3","v":0},{"$f":"'36.Vakolás és rabicolás'!I3","v":0}]
[3,"Hideg- és melegburkolatok készítése, aljzat előkészítés",{"$f":"'42.Hideg- és melegburkolatok k'!H3","v":0},{"$f":"'42.Hideg- és melegburkolatok k'!I3","v":0}]
[4,"Felületképzés",{"$f":"'47.Felületképzés'!H8","v":0},{"$f":"'47.Felületképzés'!I8","v":0}]
[5,"Épületgépészeti szerelvények és berendezések szerelése",{"$f":"'82.Épületgépészeti szerelvénye'!H3","v":0},{"$f":"'82.Épületgépészeti szerelvénye'!I3","v":0}]
[]
[null,"Összesen:",{"$f":"SUM(C2:C6)","v":0},{"$f":"SUM(D2:D6)","v":0}]

{"sheet":"36.Vakolás és rabicolás","index":2,"n_rows":3,"n_cols":9,"rows_kept":3,"cut":false,"hidden":false,"merged":[]}
["Ssz.","Tételszám","Tétel szövege","Menny.","Egység","Anyag egységár","Díj egységre","Anyag összesen","Díj összesen"]
[14,"36-002-4-0154156","Vékonyvakolat alapozók felhordása, kézi erővel",8,"m2",null,null,{"$f":"ROUND(F2*D2,0)","v":0},{"$f":"ROUND(G2*D2,0)","v":0}]
[null,null,"Munkanem összesen (HUF)",{"$nulls":4},{"$f":"ROUND(SUM(H2:H2),0)","v":0},{"$f":"ROUND(SUM(I2:I2),0)","v":0}]

{"sheet":"42.Hideg- és melegburkolatok k","index":3,"n_rows":3,"n_cols":9,"rows_kept":3,"cut":false,"hidden":false,"merged":[]}
["Ssz.","Tételszám","Tétel szövege","Menny.","Egység","Anyag egységár","Díj egységre","Anyag összesen","Díj összesen"]
[1,"42-042-6.1.2.2-0313901","Kisegítő- és részmunkák, parketta csiszolása és lakkozása, nagy igénybevételre, vízbázisú lakkal, ,selyemfényű",165,"m2",null,null,{"$f":"ROUND(F2*D2,0)","v":0},{"$f":"ROUND(G2*D2,0)","v":0}]
[null,null,"Munkanem összesen (HUF)",{"$nulls":4},{"$f":"ROUND(SUM(H2:H2),0)","v":0},{"$f":"ROUND(SUM(I2:I2),0)","v":0}]

{"sheet":"47.Felületképzés","index":4,"n_rows":8,"n_cols":9,"rows_kept":8,"cut":false,"hidden":false,"merged":[]}
["Ssz.","Tételszám","Tétel szövege","Menny.","Egység","Anyag egységár","Díj egységre","Anyag összesen","Díj összesen"]
[7,"47-000-1.21.4.1.2-0417972","Belső festéseknél felület előkészítése, részmunkák; glettelés, diszperziós kötőanyagú glettel, vakolt felületen, tagolt felületen",486,"m2",null,null,{"$f":"ROUND(F2*D2,0)","v":0},{"$f":"ROUND(G2*D2,0)","v":0}]
[8,"47-011-5.1.1.1","Olajfestések, ólommentes olaj kötőanyagú, fehér vagy színes falfestékkel, ásványi alapfelületen, régi jól tapadó festékrétegen, egy rétegben, tagolatlan sima felületen",121,"m2",null,null,{"$f":"ROUND(F3*D3,0)","v":0},{"$f":"ROUND(G3*D3,0)","v":0}]
[9,"47-011-15.1.1.1-0151171","Diszperziós festés műanyag bázisú vizes-diszperziós  fehér vagy gyárilag színezett festékkel, új vagy régi lekapart, előkészített alapfelületen, vakolaton, két rétegben, tagolatlan sima felületen  diszperziós belső falfesték, fehér",365,"m2",null,null,{"$f":"ROUND(F4*D4,0)","v":0},{"$f":"ROUND(G4*D4,0)","v":0}]
[10,"47-000-1.7.1.2","Belső festéseknél felület előkészítése, részmunkák; előfestés, bármilyen padozatú helyiségben, tagolt felületen",4.8600000000000003,"100 m2",null,null,{"$f":"ROUND(F5*D5,0)","v":0},{"$f":"ROUND(G5*D5,0)","v":0}]
[11,"47-011-42.2","Felület mintázása, második és minden további záró vonalozásért felülfizetés",1.65,"100 m",null,null,{"$f":"ROUND(F6*D6,0)","v":0},{"$f":"ROUND(G6*D6,0)","v":0}]
[]
[null,null,"Munkanem összesen (HUF)",{"$nulls":4},{"$f":"ROUND(SUM(H2:H6),0)","v":0},{"$f":"ROUND(SUM(I2:I6),0)","v":0}]

{"sheet":"82.Épületgépészeti szerelvénye","index":5,"n_rows":3,"n_cols":9,"rows_kept":3,"cut":false,"hidden":false,"merged":[]}
["Ssz.","Tételszám","Tétel szövege","Menny.","Egység","Anyag egységár","Díj egységre","Anyag összesen","Díj összesen"]
[1,"82-000-4.2.5.2","Gáz- és fűtésszerelési berendezési tárgyak le - és visszaszerelése, radiátor szerelés vakoláshoz",8,"db",null,null,{"$f":"ROUND(F2*D2,0)","v":0},{"$f":"ROUND(G2*D2,0)","v":0}]
[null,null,"Munkanem összesen (HUF)",{"$nulls":4},{"$f":"ROUND(SUM(H2:H2),0)","v":0},{"$f":"ROUND(SUM(I2:I2),0)","v":0}]